[Event "Israel National League 2024"]
[Site "Israel"]
[Date "2024.01.19"]
[Round "3.22"]
[White "Mesropov, Konstantin"]
[Black "Ben-Menachem, Itzhak"]
[Result "1/2-1/2"]
[ECO "D12"]
[WhiteElo "2440"]
[BlackElo "2266"]
[Annotator "RC"]
[PlyCount "229"]
[EventDate "2024.01.07"]
[EventType "team-tourn"]
[EventCountry "ISR"]
[SourceTitle "playchess.com"]
[Source "ChessBase"]
[SourceQuality "1"]
[TimeControl "40/5400+30:1800+30"]

1. d4 {[%emt 0:00:08]} d5 {[%emt 0:02:12]} 2. c4 {[%emt 0:01:39]} c6 {[%emt 0:00:03]} 3. Nf3 {[%emt 0:01:45]} Nf6 {[%emt 0:00:06]} 4. e3 {[%emt 0:06:50]} Bf5 {[%emt 0:05:58]} 5. Nc3 {[%emt 0:02:42]} e6 {[%emt 0:01:20]} 6. Nh4 {[%emt 0:03:13]} Bg6 {[%emt 0:03:50]} 7. Nxg6 {[%emt 0:02:55]} hxg6 {[%emt 0:00:02]} 8. Bd3 {[%emt 0:00:53]} Nbd7 {[%emt 0:04:55]} 9. Bd2 {[%emt 0:08:54]} Be7 {[%emt 0:05:46]} 10. Qe2 {[%emt 0:06:02]} Qc7 {[%emt 0:02:14]} 11. h3 {[%emt 0:04:15]} O-O {[%emt 0:15:32]} 12. Rc1 {[%emt 0:04:00]} Rfe8 {[%emt 0:05:25]} 13. O-O {[%emt 0:01:08]} Rad8 {[%emt 0:03:44]} 14. Rfd1 {[%emt 0:05:07]} dxc4 {[%emt 0:07:11]} 15. Bxc4 {[%emt 0:00:09]} e5 {[%emt 0:00:06]} 16. d5 {[%emt 0:07:43]} e4 {[%emt 0:04:10]} 17. dxc6 {[%emt 0:02:20]} bxc6 {[%emt 0:02:31]} 18. Nb5 {[%emt 0:06:47]} Qb6 {[%emt 0:00:20]} 19. Nd4 {[%emt 0:00:17]} Ne5 {[%emt 0:00:19]} 20. Bc3 {[%emt 0:07:27]} Bb4 {[%emt 0:34:46]} 21. Bxb4 {[%emt 0:03:27]} Qxb4 {[%emt 0:00:00]} 22. a3 {[%emt 0:01:30]} Qb6 {[%emt 0:00:00]} 23. b4 {[%emt 0:02:27]} a5 {[%emt 0:00:00]} 24. Qe1 {[%emt 0:04:15]} axb4 {[%emt 0:00:00]} 25. Qxb4 {[%emt 0:00:47]} Qxb4 {[%emt 0:00:00]} 26. axb4 {[%emt 0:00:05]} Rb8 {[%emt 0:00:00]} 27. Bf1 {[%emt 0:04:24]} Rxb4 {[%emt 0:00:00]} 28. Nxc6 {[%emt 0:00:21]} Nxc6 {[%emt 0:00:00]} 29. Rxc6 {[%emt 0:00:02]} Rb7 {[%emt 0:00:00]} 30. Ba6 {[%emt 0:03:11]} Rd7 {[%emt 0:00:00]} 31. Rxd7 {[%emt 0:03:37]} Nxd7 {[%emt 0:00:00]} 32. Rc4 {[%emt 0:00:42]} Nf6 {[%emt 0:00:00]} 33. g4 {[%emt 0:02:03]} Re5 {[%emt 0:01:17]} 34. Rc7 {[%emt 0:01:55]} Ne8 {[%emt 0:01:37]} 35. Rd7 {[%emt 0:01:15]} Kf8 {[%emt 0:04:36]} 36. Kg2 {[%emt 0:00:30]} g5 {[%emt 0:00:00]} 37. Bc4 {[%emt 0:01:18]} Re7 {[%emt 0:00:00]} 38. Rd8 {[%emt 0:03:27]} Re5 {[%emt 0:00:00]} 39. Rb8 {[%emt 0:00:00]} f6 {[%emt 0:00:00]} 40. Kg3 {[%emt 0:00:00]} Ke7 {[%emt 0:00:56]} 41. Rb7+ {[%emt 0:03:05]} Kd6 {[%emt 0:02:00]} 42. Bb3 {[%emt 0:05:04]} Re7 {[%emt 0:16:35]} 43. Rb4 {[%emt 0:01:25]} Kc5 {[%emt 0:02:56]} 44. Rc4+ {[%emt 0:00:11]} Kb5 {[%emt 0:00:22]} 45. Rd4 {[%emt 0:01:53]} Kc5 {[%emt 0:00:09]} 46. Bg8 {[%emt 0:05:37]} Nd6 {[%emt 0:01:18]} 47. Bh7 {[%emt 0:00:22]} Kc6 {[%emt 0:02:59]} 48. Bg6 {[%emt 0:03:06]} Re5 {[%emt 0:01:16]} 49. Ra4 {[%emt 0:00:36]} Re7 {[%emt 0:00:49]} 50. h4 {[%emt 0:01:22]} gxh4+ {[%emt 0:00:25]} 51. Kxh4 {[%emt 0:00:02]} Kd5 {[%emt 0:02:33]} 52. Kg3 {[%emt 0:01:40]} Rb7 {[%emt 0:00:16]} 53. Bh7 {[%emt 0:05:51]} g5 {[%emt 0:02:05]} 54. Bg8+ {[%emt 0:00:55]} Ke5 {[%emt 0:04:51]} 55. Ra5+ {[%emt 0:01:05]} Rb5 {[%emt 0:00:00]} 56. Ra8 {[%emt 0:00:16]} Rb1 {[%emt 0:00:00]} 57. Kg2 {[%emt 0:00:39]} Rb2 {[%emt 0:00:00]} 58. Bh7 {[%emt 0:01:17]} Rb7 {[%emt 0:00:00]} 59. Bg6 {[%emt 0:00:36]} Rb2 {[%emt 0:00:00]} 60. Rd8 {[%emt 0:01:36]} Rb7 {[%emt 0:00:00]} 61. Ra8 {[%emt 0:00:34]} Rb2 {[%emt 0:00:00]} 62. Ra1 {[%emt 0:01:23]} Rb7 {[%emt 0:00:00]} 63. Kg3 {[%emt 0:00:16]} Rb5 {[%emt 0:00:05]} 64. Rd1 {[%emt 0:00:33]} Rd5 {[%emt 0:00:21]} 65. Rc1 {[%emt 0:00:20]} Rb5 {[%emt 0:00:07]} 66. Bh7 {[%emt 0:00:12]} Rb8 {[%emt 0:01:47]} 67. Rc7 {[%emt 0:01:05]} Ke6 {[%emt 0:00:59]} 68. Rg7 {[%emt 0:01:05]} Re8 {[%emt 0:01:31]} 69. Bg6 {[%emt 0:01:13]} Rb8 {[%emt 0:02:40]} 70. Bh7 {[%emt 0:00:46]} Re8 {[%emt 0:00:00]} 71. Bg8+ {[%emt 0:00:22]} Ke5 {[%emt 0:00:00]} 72. Bb3 {[%emt 0:00:14]} Nc8 {[%emt 0:00:00]} 73. Rd7 {[%emt 0:00:51]} Nb6 {[%emt 0:00:37]} 74. Rb7 {[%emt 0:00:56]} Nc8 {[%emt 0:00:12]} 75. Rd7 {[%emt 0:00:54]} Nb6 {[%emt 0:00:51]} 76. Rb7 {[%emt 0:00:06]} Nc8 {[%emt 0:00:01]} 77. Ba4 {[%emt 0:00:29]} Nd6 {[%emt 0:00:19]} 78. Ra7 {[%emt 0:00:20]} Rb8 {[%emt 0:00:19]} 79. Bd7 {[%emt 0:00:19]} Nc4 {[%emt 0:00:37]} 80. Bc6 {[%emt 0:00:40]} Nd2 {[%emt 0:01:01]} 81. Ra2 {[%emt 0:01:00]} Rd8 {[%emt 0:00:22]} 82. Bb7 {[%emt 0:00:52]} Ke6 {[%emt 0:00:40]} 83. Ba6 {[%emt 0:00:31]} Ke5 {[%emt 0:02:01]} 84. Be2 {[%emt 0:00:16]} Ke6 {[%emt 0:00:00]} 85. Ra5 {[%emt 0:00:22]} Rd7 {[%emt 0:00:00]} 86. Kg2 {[%emt 0:00:17]} Rd8 {[%emt 0:00:00]} 87. Ra1 {[%emt 0:00:07]} Ke5 {[%emt 0:00:00]} 88. Bb5 {[%emt 0:00:57]} Nf3 {[%emt 0:00:11]} 89. Bc6 {[%emt 0:00:22]} Nd2 {[%emt 0:00:31]} 90. Ra4 {[%emt 0:00:25]} Rd6 {[%emt 0:00:35]} 91. Ra5+ {[%emt 0:00:19]} Ke6 {[%emt 0:00:14]} 92. Bb7 {[%emt 0:00:03]} Rd8 {[%emt 0:00:30]} 93. Rc5 {[%emt 0:00:17]} Kd6 {[%emt 0:00:53]} 94. Rc6+ {[%emt 0:00:38]} Ke5 {[%emt 0:01:21]} 95. Bc8 {[%emt 0:00:14]} Rd6 {[%emt 0:00:21]} 96. Rc7 {[%emt 0:00:24]} Rd8 {[%emt 0:01:02]} 97. Bf5 {[%emt 0:00:10]} Kd5 {[%emt 0:00:30]} 98. Re7 {[%emt 0:01:54]} Rd6 {[%emt 0:00:43]} 99. Bc8 {[%emt 0:00:24]} Rd8 {[%emt 0:00:20]} 100. Bf5 {[%emt 0:00:12]} Rd6 {[%emt 0:00:27]} 101. Re8 {[%emt 0:00:15]} Kc6 {[%emt 0:00:40]} 102. Bxe4+ {[%emt 0:01:10]} Kd7 {[%emt 0:01:12]} 103. Bg6 {[%emt 0:00:10]} Nc4 {[%emt 0:00:00]} 104. Ra8 {[%emt 0:00:45]} Ke7 {[%emt 0:00:03]} 105. Bf5 {[%emt 0:00:11]} Rd2 {[%emt 0:00:18]} 106. Ra7+ {[%emt 0:00:30]} Ke8 {[%emt 0:00:13]} 107. Kg3 {[%emt 0:00:17]} Nd6 {[%emt 0:00:17]} 108. Bg6+ {[%emt 0:00:14]} Kd8 {[%emt 0:00:21]} 109. Kf3 {[%emt 0:00:47]} Nc4 {[%emt 0:00:26]} 110. Bf5 {[%emt 0:00:16]} Ne5+ {[%emt 0:00:31]} 111. Ke4 {[%emt 0:01:24]} Rxf2 {[%emt 0:01:13]} 112. Kd5 {[%emt 0:00:12]} Rb2 {[%emt 0:00:12]} 113. Ra8+ {[%emt 0:01:38]} Ke7 {[%emt 0:00:12]} 114. Ra7+ {[%emt 0:00:04]} Kd8 {[%emt 0:00:07]} 115. Ra8+ {[%emt 0:01:37]} 1/2-1/2

[Event "Israel National League 2024"]
[Site "Israel"]
[Date "2024.01.19"]
[Round "3.23"]
[White "Klar, Nir"]
[Black "Bakalchuk, Johnatan"]
[Result "0-1"]
[ECO "B34"]
[WhiteElo "2157"]
[BlackElo "2450"]
[Annotator "RC"]
[PlyCount "76"]
[EventDate "2024.01.07"]
[EventType "team-tourn"]
[EventCountry "ISR"]
[SourceTitle "playchess.com"]
[Source "ChessBase"]
[SourceQuality "1"]
[TimeControl "40/5400+30:1800+30"]

1. e4 {[%emt 0:02:12]} c5 {[%emt 0:01:08]} 2. Nf3 {[%emt 0:00:05]} g6 {[%emt 0:00:19]} 3. d4 {[%emt 0:00:52]} cxd4 {[%emt 0:00:21]} 4. Nxd4 {[%emt 0:00:10]} Bg7 {[%emt 0:00:26]} 5. Nc3 {[%emt 0:00:09]} Nc6 {[%emt 0:00:06]} 6. Be3 {[%emt 0:00:08]} Nf6 {[%emt 0:00:06]} 7. Nxc6 {[%emt 0:00:17]} bxc6 {[%emt 0:00:08]} 8. e5 {[%emt 0:00:09]} Ng8 {[%emt 0:00:05]} 9. Bd4 {[%emt 0:02:32]} Qa5 {[%emt 0:00:24]} 10. f4 {[%emt 0:00:31]} f6 {[%emt 0:00:15]} 11. Qd2 {[%emt 0:07:43]} fxe5 {[%emt 0:00:44]} 12. fxe5 {[%emt 0:00:36]} c5 {[%emt 0:01:02]} 13. Be3 {[%emt 0:02:01]} Bxe5 {[%emt 0:01:49]} 14. Bc4 {[%emt 0:00:08]} Nf6 {[%emt 0:02:02]} 15. O-O {[%emt 0:04:25]} Ba6 {[%emt 0:02:16]} 16. Bf7+ {[%emt 0:09:10]} Kd8 {[%emt 0:14:32]} 17. Rxf6 {[%emt 0:09:09]} Bxf6 {[%emt 0:29:32]} 18. Qd5 {[%emt 0:04:17]} Rb8 {[%emt 0:14:16]} 19. Rd1 {[%emt 0:03:51]} Qc7 {[%emt 0:04:49]} 20. Bf4 {[%emt 0:15:33]} e5 {[%emt 0:00:25]} 21. Ne4 {[%emt 0:37:02]} exf4 {[%emt 0:00:48]} 22. Nxf6 {[%emt 0:00:00]} Bb5 {[%emt 0:09:29]} 23. Ne8 {[%emt 0:01:00]} Rxe8 {[%emt 0:02:41]} 24. Bxe8 {[%emt 0:00:00]} Kc8 {[%emt 0:08:22]} 25. b3 {[%emt 0:00:00]} Bc6 {[%emt 0:02:14]} 26. Qf7 {[%emt 0:00:00]} Qd8 {[%emt 0:01:32]} 27. Rd6 {[%emt 0:00:00]} Rb7 {[%emt 0:02:01]} 28. Qg8 {[%emt 0:01:08]} Kc7 {[%emt 0:00:59]} 29. Qf7 {[%emt 0:00:36]} Kc8 {[%emt 0:01:34]} 30. Rd1 {[%emt 0:00:55]} Qg5 {[%emt 0:00:24]} 31. Bxd7+ {[%emt 0:00:43]} Rxd7 {[%emt 0:00:24]} 32. Qg8+ {[%emt 0:00:15]} Kc7 {[%emt 0:00:26]} 33. Rxd7+ {[%emt 0:00:05]} Bxd7 {[%emt 0:00:48]} 34. Qa8 {[%emt 0:00:01]} Bc6 {[%emt 0:00:28]} 35. Qxa7+ {[%emt 0:00:01]} Bb7 {[%emt 0:00:29]} 36. Qa5+ {[%emt 0:00:01]} Kc8 {[%emt 0:01:06]} 37. Qd2 {[%emt 0:00:16]} Qe5 {[%emt 0:00:00]} 38. Kf2 {[%emt 0:00:22]} Qd4+ {[%emt 0:00:02]} 0-1

[Event "Israel National League 2024"]
[Site "Israel"]
[Date "2024.01.19"]
[Round "3.24"]
[White "Kochavi, Dana"]
[Black "Erenberg, Shlomy"]
[Result "1/2-1/2"]
[ECO "C67"]
[WhiteElo "2121"]
[BlackElo "2103"]
[Annotator "NA RC"]
[PlyCount "153"]
[EventDate "2024.01.07"]
[EventType "team-tourn"]
[EventCountry "ISR"]
[SourceTitle "playchess.com"]
[Source "ChessBase"]
[SourceQuality "1"]
[TimeControl "40/5400+30:1800+30"]

1. e4 {[%emt 0:00:02]} e5 {[%emt 0:00:14]} 2. Nf3 {[%emt 0:00:21]} Nc6 {[%emt 0:01:55]} 3. Bb5 {[%emt 0:00:05]} Nf6 {[%emt 0:00:47]} 4. O-O {[%emt 0:00:08]} Nxe4 {[%emt 0:00:05]} 5. Re1 {[%emt 0:00:28]} Nd6 {[%emt 0:00:14]} 6. Nxe5 {[%emt 0:01:28]} Be7 {[%emt 0:00:30]} 7. Bf1 {[%emt 0:00:12]} Nxe5 {[%emt 0:00:27]} 8. Rxe5 {[%emt 0:00:07]} O-O {[%emt 0:00:10]} 9. d4 {[%emt 0:00:13]} Bf6 {[%emt 0:00:49]} 10. Re1 {[%emt 0:02:36]} Re8 {[%emt 0:01:00]} 11. Bf4 {[%emt 0:06:10]} Rxe1 {[%emt 0:01:10]} 12. Qxe1 {[%emt 0:00:07]} Ne8 {[%emt 0:01:04]} 13. Bd3 {[%emt 0:04:34]} g6 {[%emt 0:07:20]} 14. c3 {[%emt 0:03:19]} d5 {[%emt 0:01:41]} 15. Nd2 {[%emt 0:06:14]} Ng7 {[%emt 0:00:47]} 16. Nf1 {[%emt 0:04:38]} c6 {[%emt 0:08:53]} 17. Qe2 {[%emt 0:05:59]} Be6 {[%emt 0:06:16]} 18. Ne3 {[%emt 0:02:58]} Nh5 {[%emt 0:13:30]} 19. Bg3 {[%emt 0:03:27]} Qd7 {[%emt 0:05:00]} 20. f4 {[%emt 0:05:54]} Re8 {[%emt 0:15:26]} 21. Qf3 {[%emt 0:03:54]} Nxg3 {[%emt 0:04:41]} 22. hxg3 {[%emt 0:00:40]} Qd6 {[%emt 0:04:13]} 23. Rf1 {[%emt 0:12:48]} Bd7 {[%emt 0:01:05]} 24. g4 {[%emt 0:07:52]} Qe7 {[%emt 0:02:11]} 25. Re1 {[%emt 0:02:13]} Bg7 {[%emt 0:00:32]} 26. Re2 {[%emt 0:03:56]} Qd6 {[%emt 0:02:21]} 27. g5 {[%emt 0:06:01]} h6 {[%emt 0:05:50]} 28. gxh6 {[%emt 0:07:34]} Bxh6 {[%emt 0:00:01]} 29. g3 {[%emt 0:01:50]} f5 {[%emt 0:07:04]} 30. Ng2 {[%emt 0:03:18]} Bg7 {[%emt 0:00:37]} 31. Nh4 {[%emt 0:00:57]} Rxe2 {[%emt 0:00:36]} 32. Qxe2 {[%emt 0:00:19]} c5 {[%emt 0:03:46]} 33. dxc5 {[%emt 0:00:21]} Qxc5+ {[%emt 0:00:02]} 34. Kh2 {[%emt 0:00:13]} Qd6 {[%emt 0:00:43]} 35. Nf3 {[%emt 0:02:05]} Bf6 {[%emt 0:00:31]} 36. Qe3 {[%emt 0:00:38]} b6 {[%emt 0:02:10]} 37. Bc2 {[%emt 0:01:26]} Qc5 {[%emt 0:01:20]} 38. Nd4 {[%emt 0:00:22]} Kf7 {[%emt 0:03:06]} 39. Bb3 {[%emt 0:00:33]} Bxd4 {[%emt 0:01:14]} 40. cxd4 {[%emt 0:01:25]} Qd6 {[%emt 0:00:33]} 41. Kg2 {[%emt 0:30:56]} Be6 {[%emt 0:30:28]} 42. Kf3 {[%emt 0:00:43]} Ke7 {[%emt 0:00:00]} 43. Qe5 {[%emt 0:00:00]} Qc6 {[%emt 0:00:00]} 44. Qg7+ {[%emt 0:00:00]} Bf7 {[%emt 0:00:00]} 45. Qe5+ {[%emt 0:00:00]} Be6 {[%emt 0:00:00]} 46. Qe3 {[%emt 0:00:00]} Qb5 {[%emt 0:00:00]} 47. Qe2 {[%emt 0:00:00]} Qc6 {[%emt 0:00:00]} 48. Qa6 {[%emt 0:00:00]} Qc7 {[%emt 0:00:00]} 49. Qa3+ {[%emt 0:00:00]} Kf7 {[%emt 0:00:00]} 50. Qa4 {[%emt 0:00:00]} Ke7 {[%emt 0:00:00]} 51. Qb4+ {[%emt 0:00:00]} Kf7 {[%emt 0:00:00]} 52. Qc3 {[%emt 0:00:00]} Qd7 {[%emt 0:00:00]} 53. Qe1 {[%emt 0:00:00]} Qb5 {[%emt 0:00:00]} 54. Qe2 {[%emt 0:00:00]} Qc6 {[%emt 0:00:00]} 55. Qa6 {[%emt 0:00:00]} Qc7 {[%emt 0:00:00]} 56. Qf1 {[%emt 0:00:00]} Qc6 {[%emt 0:00:00]} 57. Qh1 {[%emt 0:00:00]} Kg7 {[%emt 0:00:00]} 58. Qd1 {[%emt 0:00:00]} Kf6 {[%emt 0:00:00]} 59. Qc2 {[%emt 0:00:00]} Qb5 {[%emt 0:00:00]} 60. Kf2 {[%emt 0:00:00]} Qd7 {[%emt 0:00:00]} 61. Ba4 {[%emt 0:00:00]} Qh7 {[%emt 0:04:02]} 62. Kg2 {[%emt 0:00:00]} Qb7 {[%emt 0:00:31]} 63. Qe2 {[%emt 0:00:00]} Qc8 {[%emt 0:00:31]} 64. Qc2 {[%emt 0:00:00]} Qb7 {[%emt 0:01:12]} 65. Qc6 {[%emt 0:00:00]} Qa6 {[%emt 0:00:12]} 66. Qb5 {[%emt 0:00:00]} Qc8 {[%emt 0:00:20]} 67. Bb3 {[%emt 0:00:00]} Qb7 {[%emt 0:01:45]} 68. Qe8 {[%emt 0:00:00]} Qa6 {[%emt 0:03:54]} 69. Qf8+ {[%emt 0:00:00]} Bf7 {[%emt 0:00:15]} 70. Qh8+ {[%emt 0:00:16]} Ke7 {[%emt 0:00:37]} 71. Qe5+ {[%emt 0:00:24]} Kf8 {[%emt 0:00:40]} 72. Bxd5 {[%emt 0:04:25]} Bxd5+ {[%emt 0:00:12]} 73. Qxd5 {[%emt 0:00:01]} Qe2+ {[%emt 0:00:04]} 74. Kg1 {[%emt 0:00:19]} Qd1+ {[%emt 0:00:38]} 75. Kh2 {[%emt 0:00:09]} Qh5+ {[%emt 0:00:14]} 76. Kg1 {[%emt 0:00:34]} Qd1+ {[%emt 0:00:01]} 77. Kg2 {[%emt 0:00:10]} 1/2-1/2

[Event "Israel National League 2024"]
[Site "Israel"]
[Date "2024.01.19"]
[Round "3.25"]
[White "Parkhov, Yair"]
[Black "Van Foreest, Lucas"]
[Result "1-0"]
[ECO "D35"]
[WhiteElo "2495"]
[BlackElo "2529"]
[Annotator "TA"]
[PlyCount "129"]
[EventDate "2024.01.07"]
[EventType "team-tourn"]
[EventCountry "ISR"]
[SourceTitle "playchess.com"]
[Source "ChessBase"]
[SourceQuality "1"]
[TimeControl "40/5400+30:1800+30"]

{[%evp 18,129,31,22,22,22,22,22,22,22,22,11,17,0,0,0,0,0,49,49,39,29,29,37,28,37,56,66,118,105,113,109,102,104,105,104,105,105,101,93,87,68,68,55,60,17,17,17,17,17,23,38,45,25,145,144,150,161,193,106,113,115,300,291,541,502,1339,1339,1332,1320,1316,1050,1316,1291,1291,1291,1284,1281,1230,1121,1293,704,696,682,5527,6031,4134,3033,3951,6906,1393,658,29946,29948,29958,12850,12845,665,29965,29951,29967,29968,29968,29969,6597,29936,12781,12789,12781,10304,29965,29965,29963,29961]} 1. d4 {[%emt 0:02:58]} d5 {[%emt 0:00:16]} 2. c4 {[%emt 0:00:04]} e6 {[%emt 0:00:04]} 3. Nc3 {[%emt 0:00:18]} Nf6 {[%emt 0:00:06]} 4. cxd5 {[%emt 0:00:07]} exd5 {[%emt 0:00:05]} 5. Bg5 {[%emt 0:00:03]} c6 {[%emt 0:00:15]} 6. e3 {[%emt 0:00:09]} Bf5 {[%emt 0:00:19]} 7. Qf3 {[%emt 0:02:22]} Bg6 {[%emt 0:00:07]} 8. Bxf6 {[%emt 0:00:05]} Qxf6 {[%emt 0:00:03]} 9. Qxf6 {[%emt 0:00:06]} gxf6 {[%emt 0:00:04]} 10. h4 {[%emt 0:01:06]} h5 {[%emt 0:00:08] D35: Queen's Gambit Declined: Exchange Variation.} 11. Kd2 {[%emt 0:00:48]} Nd7 {[%emt 0:05:38]} 12. Bd3 {[%emt 0:06:09]} a5 {[%emt 0:00:59] The position is equal.} 13. Nge2 {[%emt 0:10:14]} Bd6 {[%emt 0:01:41] [#]} 14. Rh3 $146 {[%emt 0:05:40][%cal Bh1h3,Bh3f3,Bf3f4][%mdl 32]} ({Predecessor:} 14. Nf4 Bxf4 15. exf4 Bxd3 16. Kxd3 Nb6 17. Ne2 Nc4 18. Rab1 Kd7 19. Ng3 Rag8 20. Rhe1 {0-1 Tang,A (2539)-Sarana,A (2668) Titled Tuesday intern op 08th Nov Early blitz 2022 (9)}) 14... Rg8 {[%emt 0:10:57]} 15. Rf3 {[%emt 0:10:03]} Bxd3 {[%emt 0:09:06]} 16. Kxd3 {[%emt 0:00:41]} Rxg2 {[%emt 0:00:23]} 17. Rh1 {[%emt 0:02:24]} b5 {[%emt 0:09:35]} (17... Kf8 $11) 18. Nf4 $14 {[%emt 0:03:16]} Bxf4 {[%emt 0:10:34]} 19. Rxf4 {[%emt 0:00:04]} Ke7 {[%emt 0:07:09]} 20. Ne2 {[%emt 0:06:17][%mdl 1024] White has compensation.} Rag8 {[%emt 0:04:22]} 21. Rf3 {[%emt 0:05:22]} R2g4 {[%emt 0:02:36]} 22. Ng3 {[%emt 0:02:25]} Rh8 {[%emt 0:10:04]} (22... c5 $14) 23. Rf5 $16 {[%emt 0:01:46]} Rgg8 {[%emt 0:17:49]} 24. Ke2 {[%emt 0:08:35]} (24. Nxh5 Ke6 25. e4 dxe4+ 26. Kxe4 a4 $14) 24... Ke6 {[%emt 0:00:55][%cal Og8g3] ...Rxg3! is the strong threat.} 25. Rxh5 {[%emt 0:00:50]} c5 {[%emt 0:05:53]} 26. dxc5 {[%emt 0:04:27] White is more active.} (26. Rxh8 {simplifies} Rxh8 27. dxc5 Nxc5 28. h5) 26... Nxc5 {[%emt 0:00:05]} 27. Rc1 {[%emt 0:11:29]} Ne4 {[%emt 0:00:12]} 28. Rxh8 {[%emt 0:00:04]} Rxh8 {[%emt 0:00:49]} 29. Nxe4 {[%emt 0:00:08]} dxe4 {[%emt 0:00:04][%mdl 4096] Endgame KR-KR} 30. Rc5 {[%emt 0:01:16]} Rb8 {[%emt 0:00:02]} 31. a3 {[%emt 0:00:42]} a4 {[%emt 0:02:04]} 32. h5 {[%emt 0:01:26][%cal Bh4h5,Bh5h6,Bh6h7][%mdl 32]} Kd6 $1 {[%emt 0:02:02]} 33. Rc1 {[%emt 0:00:19]} Rh8 {[%emt 0:00:55]} 34. Rh1 {[%emt 0:00:06]} Kc5 {[%emt 0:00:39]} 35. Kd2 {[%emt 0:04:30]} (35. Rh4 $5 {[%cal Rh5h6]}) 35... b4 {[%emt 0:01:09]} (35... Kc4 $1 $11 {keeps the balance.} 36. h6 Kb3) 36. h6 {[%emt 0:01:27]} Kc4 {[%emt 0:00:30]} 37. Kc2 {[%emt 0:00:33]} Rh7 {[%emt 0:00:25]} 38. Rh2 {[%emt 0:02:55]} ({Better is} 38. axb4 $18 {[%cal Ob4b5] Hoping for b5!} Kxb4 39. Rh4) 38... f5 {[%emt 0:00:18]} 39. Rh4 {[%emt 0:01:59]} f6 $2 {[%emt 0:00:56] [#] This costs Black the game.} (39... Rh8 $16 {might work better.} 40. axb4 Kxb4) 40. Rh5 $1 $18 {[%emt 0:00:47]} Rh8 $2 {[%emt 0:00:30]} (40... b3+ 41. Kd2 Rd7+ 42. Ke2 Rh7 43. Rxf5 Rxh6) 41. h7 {[%emt 0:30:30]} (41. Rxf5 Rxh6 42. axb4 Kxb4 $11) 41... f4 {[%emt 0:05:33]} (41... bxa3 $142 42. bxa3 f4 43. exf4 Kd4) 42. exf4 {[%emt 0:00:00]} f5 {[%emt 0:06:16]} 43. Rh3 {[%emt 0:00:00]} ({And not} 43. Rxf5 Rxh7 44. Re5 Kd4 $11) 43... Kb5 {[%emt 0:01:33]} 44. Rh6 {[%emt 0:00:00]} Kc5 {[%emt 0:02:30]} 45. axb4+ {[%emt 0:00:00]} Kxb4 {[%emt 0:00:07]} 46. Rb6+ {[%emt 0:00:00]} Kc5 {[%emt 0:01:45] [#]} 47. Rb7 $1 {[%emt 0:00:00]} Kc4 {[%emt 0:00:21]} 48. Kd2 {[%emt 0:00:00]} Kd4 {[%emt 0:06:15]} 49. Ke2 {[%emt 0:00:00]} Kd5 {[%emt 0:00:43]} 50. Ke3 {[%emt 0:00:00] And now f3 would win.} Kc5 {[%emt 0:00:24]} 51. f3 {[%emt 0:00:00]} Kc6 {[%emt 0:01:11]} 52. Rg7 {[%emt 0:00:00]} exf3 {[%emt 0:00:15]} 53. Kxf3 {[%emt 0:00:00]} (53. Ra7 $142 Kc5 54. Kxf3 (54. Rxa4 Rxh7 55. Ra5+ Kd6 $16)) 53... Kd5 {[%emt 0:00:49]} 54. Ke3 {[%emt 0:00:00]} Ke6 {[%emt 0:02:29]} 55. Kd4 {[%emt 0:00:00]} Kf6 {[%emt 0:00:05]} 56. Rd7 {[%emt 0:00:00]} (56. Ra7 $142 Kg6 57. Kc4 (57. Rxa4 Rxh7 58. Rc4 Rh8 $18) 57... Kh5 58. Kd5 (58. Rxa4 Rxh7 59. Kd5 Rb7 $11) 58... Kh6 59. Kc6 Kh5 60. Rxa4 Kg4 61. Ra7 Kxf4 62. b4) 56... Kg6 {[%emt 0:00:37]} 57. Kd5 {[%emt 0:00:00]} Rb8 {[%emt 0:01:12]} 58. Kc6 {[%emt 0:00:00]} Rh8 {[%emt 0:00:08]} 59. Kb5 {[%emt 0:00:00]} Kh5 {[%emt 0:00:06]} 60. Rg7 {[%emt 0:03:33]} Kh6 {[%emt 0:08:23]} 61. Rg2 {[%emt 0:00:46]} (61. Ra7 $18 Kh5 62. Kxa4 (62. Rxa4 Rxh7 63. Kc6 Kg4 $16)) 61... Rb8+ {[%emt 0:00:00]} 62. Kxa4 {[%emt 0:00:05] Rg8 would kill now.} Ra8+ {[%emt 0:00:00]} 63. Kb5 {[%emt 0:00:32] White threatens Rg8 and mate.} Rb8+ {[%emt 0:00:00]} 64. Kc5 {[%emt 0:00:30]} Rc8+ {[%emt 0:00:00]} 65. Kd5 {[%emt 0:00:15] Weighted Error Value: White=0.08 (flawless) /Black=0.61} 1-0

[Event "Israel National League 2024"]
[Site "Israel"]
[Date "2024.01.19"]
[Round "3.26"]
[White "Sokolovsky, Yahli"]
[Black "Bitensky, Igor"]
[Result "1-0"]
[ECO "C88"]
[WhiteElo "2436"]
[BlackElo "2384"]
[Annotator "RC"]
[PlyCount "39"]
[EventDate "2024.01.07"]
[EventType "team-tourn"]
[EventCountry "ISR"]
[SourceTitle "playchess.com"]
[Source "ChessBase"]
[SourceQuality "1"]
[TimeControl "40/5400+30:1800+30"]

1. e4 {[%emt 0:00:06]} e5 {[%emt 0:02:53]} 2. Nf3 {[%emt 0:00:10]} Nc6 {[%emt 0:00:00]} 3. Bb5 {[%emt 0:00:14]} a6 {[%emt 0:00:01]} 4. Ba4 {[%emt 0:00:07]} Nf6 {[%emt 0:00:01]} 5. O-O {[%emt 0:00:14]} Be7 {[%emt 0:00:04]} 6. Re1 {[%emt 0:00:09]} b5 {[%emt 0:00:01]} 7. Bb3 {[%emt 0:00:07]} O-O {[%emt 0:00:02]} 8. a4 {[%emt 0:00:08]} Bb7 {[%emt 0:00:36]} 9. d3 {[%emt 0:00:31]} d5 {[%emt 0:00:13]} 10. exd5 {[%emt 0:02:03]} Nxd5 {[%emt 0:00:05]} 11. Nc3 {[%emt 0:03:39]} Nxc3 {[%emt 0:01:56]} 12. bxc3 {[%emt 0:00:07]} Bf6 {[%emt 0:03:13]} 13. Nd2 {[%emt 0:17:37]} Qd7 {[%emt 0:10:13]} 14. Ne4 {[%emt 0:10:10]} Be7 {[%emt 0:00:30]} 15. Qh5 {[%emt 0:00:35]} b4 {[%emt 0:43:14]} 16. Re3 {[%emt 0:07:07]} Bc8 {[%emt 0:00:58]} 17. Rg3 {[%emt 0:08:38]} Qf5 {[%emt 0:11:57]} 18. Qh6 {[%emt 0:03:12]} g6 {[%emt 0:03:17]} 19. Rh3 {[%emt 0:00:38]} g5 {[%emt 0:00:10]} 20. Qxc6 {[%emt 0:00:11]} 1-0